Cogmind - Beta 17 @@@ ROGUE MODE // 2026.07.06 @ 16:21:59 Player: kite Result: Self-destructed Performance ------------- Evolutions (0) 0 Regions Visited (4) 800 Robots Destroyed (33) 165 Value Destroyed (589) 589 Prototype IDs (23) 460 Alien Tech Used (0) 0 Bonus (261) 261 TOTAL SCORE: 2275 Bonus ------- Aligned with FarCom 300 Friendly Fire -39 Cogmind --------- Core Integrity 97/250 Matter 294/300 Energy 125/125 System Corruption 2% Temperature Cool (0) Movement Walking (190) Ox1 Location -9/Mines Parts ------- > --- POWER (1) -------- Light Ion Engine > --- PROPULSION (2) --- Aluminum Leg Aluminum Leg > --- UTILITY (2) ------ Large Storage Unit Medium Armor Plating > --- WEAPON (2) ------- Hammer Hammer > --- INVENTORY (15) --- Aluminum Leg Aluminum Leg Heat Sink Medium Matter Pod (100) Light Assault Rifle XL Autogun Array Peak State ------------ > --- POWER ------------ Improved Ion Engine > --- PROPULSION ------- Aluminum Leg Aluminum Leg > --- UTILITY ---------- Large Storage Unit Large Storage Unit > --- WEAPON ----------- EM Pulse Gun EM Pulse Gun > --- INVENTORY -------- Light Ion Engine Aluminum Leg Aluminum Leg Aluminum Leg Aluminum Leg Heat Sink Medium Matter Pod Medium Armor Plating EM Pulse Gun XL Autogun Array Hammer [Rating: 12] Favorites ----------- Power Improved Ion Engine Engine Improved Ion Engine Propulsion Aluminum Leg Treads Light Treads Leg Aluminum Leg Utility Large Storage Unit Device Improved Terrain Scanner Storage Large Storage Unit Protection Medium Armor Plating Weapon EM Pulse Gun Energy Gun EM Pulse Gun Ballistic Gun Assault Rifle Impact Weapon Hammer Build | -11 -10 -10 -10 -9 ------- Run | Yrd Mat Min Exi Min Slots Evolved . | . . . . . Power . | . . . . . Propulsion . | . . . . . Utility . | . . . . . Weapon . | . . . . . Parts Attached 28 | 9 12 . 1 6 Power 4 | 2 2 . . . Engine 4 | 2 2 . . . Core . | . . . . . Reactor . | . . . . . Propulsion 6 | 2 2 . . 2 Treads 2 | 2 . . . . Leg 4 | . 2 . . 2 Wheel . | . . . . . Hover . | . . . . . Flight . | . . . . . Utility 7 | 2 3 . 1 1 Device 1 | 1 . . . . Storage 4 | 1 2 . 1 . Processor . | . . . . . Hackware . | . . . . . Protection 2 | . 1 . . 1 Artifact . | . . . . . Weapon 11 | 3 5 . . 3 Energy Gun 5 | . 5 . . . Energy Cannon . | . . . . . Ballistic Gun 4 | 3 . . . 1 Ballistic Cannon . | . . . . . Launcher . | . . . . . Special Weapon . | . . . . . Impact Weapon 2 | . . . . 2 Slashing Weapon . | . . . . . Piercing Weapon . | . . . . . Special Melee Weapon . | . . . . . Unidentified Prototypes . | . . . . . Corrupted Parts 1 | . . . . 1 System Corruption 2 | . . . . 2 Parts Lost 10 | . 4 . . 6 Power 1 | . . . . 1 Propulsion 3 | . 1 . . 2 Utility 1 | . 1 . . . Weapon 5 | . 2 . . 3 Highest Loss Streak 6 | . 4 . . 6 To Critical Strikes . | . . . . . Average Backups 7 | 1 6 10 10 6 Power . | . 1 1 1 . Propulsion 2 | . 1 4 4 2 Utility 1 | . 1 3 3 2 Weapon 2 | . 2 2 2 2 Tool/Special . | . . . . . Unused Backups 7 | . 2 . . 5 Power . | . . . . . Propulsion 2 | . . . . 2 Utility 2 | . . . . 2 Weapon 3 | . 2 . . 1 Tool/Special . | . . . . . Average Slot Usage (%) 94 | . 96 85 85 95 Engine 14 | . 14 14 14 14 Treads 13 | . 24 . . . Leg 14 | . 3 28 28 27 Device 4 | . 7 . . . Storage 14 | . 14 14 14 14 Protection 5 | . 4 . . 11 Energy Gun 15 | . 15 28 28 3 Ballistic Gun 6 | . 11 . . . Impact Weapon 5 | . . . . 22 Peak Build Rating 12 | 9 10 8 12 12 Average Rating 9 | 5 8 8 9 11 On Entrance 7 | . 9 8 8 11 Avg Prop Armor Cover (%) 11 | . 11 . . . Naked Turns . | . . . . . Heaviest Build 51 | 15 38 31 51 34 Greatest Support 40 | 40 40 20 20 20 Greatest Overweight (x) 3 | . 3 1 2 2 Average Overweight (x) . | . . 1 1 1 Largest Inventory Capacity 15 | 8 15 15 15 15 Average Capacity 12 | 7 9 15 15 15 Most Carried 14 | 2 10 10 14 14 Average Carried 8 | 1 6 10 12 9 Final Capacity 15 | 8 15 15 15 15 Final Carried 14 | 2 10 10 14 9 Class Distribution -------------------- 100% | Mutant Dominant Class ---------------- Mutant | -10/Materials Mutant | -10/Mines Mutant | -10/Exiles Mutant | -9/Mines Resources | -11 -10 -10 -10 -9 ----------- Run | Yrd Mat Min Exi Min Matter Collected 782 | 32 492 . . 258 Remotely . | . . . . . Salvage Created 1014 | 16 671 . . 327 Parts 54 | 5 31 . . 18 Haulers Intercepted 2 | . 2 . . . Recyclers Shooed 2 | . 2 . . . Parts Field Recycled . | . . . . . Retrieved Matter . | . . . . . Parts Self-Destructed . | . . . . . Prevented . | . . . . . Parts Restored . | . . . . . Kills | -11 -10 -10 -10 -9 ------- Run | Yrd Mat Min Exi Min Combat Hostiles Destroyed 23 | . 14 . . 9 Melee 2 | . . . . 2 Guns 16 | . 14 . . 2 AOE 5 | . . . . 5 Classes Destroyed 9 | 1 5 . . 3 Worker 1 | . . . . 1 Builder 1 | . . . . 1 Tunneler 3 | 1 . . . 2 Hauler 2 | . 2 . . . Recycler 2 | . 2 . . . Watcher 1 | . 1 . . . Swarmer 11 | . 5 . . 6 Grunt 11 | . 9 . . 2 Brawler 1 | . . . . 1 Best Kill Streak 7 | 1 5 . . 7 Combat Bots Only 6 | . 5 . . 6 Max Kills in Single Turn 3 | 1 1 . . 3 Gunslinging . | . . . . . Exploded 2 | . . . . 2 Melee 1 | . . . . 1 Uniques/NPCs Destroyed . | . . . . . Combat | -11 -10 -10 -10 -9 -------- Run | Yrd Mat Min Exi Min Hostile Shots Fired 149 | . 90 . . 59 Missed 31 | . 12 . . 19 Hits 118 | . 78 . . 40 Projectile 118 | . 78 . . 40 Damage Taken 1270 | . 881 . . 389 Core 153 | . 127 . . 26 Absorbed by Shields . | . . . . . Core Remaining (%) 100 | 100 . . . . Volleys Fired 81 | 6 59 . . 16 Largest 2 | 2 2 . . 2 Hottest 80 | 40 80 . . 80 Shots Fired 146 | 12 107 . . 27 Gun 146 | 12 107 . . 27 Cannon . | . . . . . Launcher . | . . . . . Special . | . . . . . Kinetic 79 | 12 66 . . 1 Thermal . | . . . . . Explosive . | . . . . . Electromagnetic 67 | . 41 . . 26 Robot Hit Streak 11 | 2 11 . . 5 Robot Miss Streak 4 | 2 2 . . 4 Penetration Max . | . . . . . Secondary Targets 2 | . 2 . . . Max Gunslinging Chain 1 | . 1 . . . Shots Hit Robots 103 | 6 72 . . 25 Core Hits 45 | 2 29 . . 14 Critical Kills 1 | . . . . 1 Critical Parts Destroyed 2 | . . . . 2 Critical Strikes 4 | . . . . 4 Corrupt 1 | . . . . 1 Smash 3 | . . . . 3 Melee Attacks 12 | . . . . 12 Impact 12 | . . . . 12 Slashing . | . . . . . Piercing . | . . . . . Sneak Attacks 5 | . . . . 5 Combat Hostiles . | . . . . . Follow-up Attacks 3 | . . . . 3 Damage Inflicted 1866 | 72 989 . . 805 Guns 1215 | 72 953 . . 190 Cannons . | . . . . . Explosions 270 | . 23 . . 247 Melee 368 | . . . . 368 Ramming 13 | . 13 . . . Kinetic 606 | 72 534 . . . Thermal 270 | . 23 . . 247 Explosive . | . . . . . Electromagnetic 609 | . 419 . . 190 Impact 368 | . . . . 368 Slashing . | . . . . . Piercing . | . . . . . Highest Corruption 2 | . . . . 2 Average Corruption 2 | . . . . 2 Corruption Purged . | . . . . . Corruption Blocked . | . . . . . Effects 4 | . . . . 4 Matter Fused 2 | . . . . 2 Data Loss (minor) 1 | . . . . 1 Data Loss (major) 1 | . . . . 1 Overload Shots . | . . . . . Overflow Damage 94 | . 3 . . 91 Projectiles . | . . . . . Explosions 11 | . 3 . . 8 Melee 83 | . . . . 83 Knockbacks 4 | . . . . 4 Impact 4 | . . . . 4 Kinetic . | . . . . . Secondary . | . . . . . Self-Inflicted Damage 82 | . 36 . . 46 Shots 3 | . 1 . . 2 Rammed 7 | . 7 . . . Targets Rammed 8 | . 8 . . . Kicked . | . . . . . Crushed 1 | . 1 . . . Highest Temperature 343 | . 343 . . 112 Average Temperature 106 | . 135 . . 44 Received Heat Transfer 408 | . 360 . . 48 Effects 2 | . 2 . . . Interference 2 | . 2 . . . Siege Activations . | . . . . . Martial Activations . | . . . . . Shielding Activations . | . . . . . Robots Disrupted . | . . . . . Combat Hostiles . | . . . . . Robots Corrupted 2 | . 1 . . 1 Combat Hostiles . | . . . . . Parts Fried 4 | . 1 . . 3 Impact Corruptions 3 | . . . . 3 Robots Melted . | . . . . . Combat Hostiles . | . . . . . Parts Melted 2 | . . . . 2 Heat Transferred 350 | . 50 . . 300 Parts Sabotaged . | . . . . . Parts Stolen . | . . . . . Parts Stripped . | . . . . . Power Chain Reactions 4 | . 1 . . 3 Alert | -11 -10 -10 -10 -9 ------- Run | Yrd Mat Min Exi Min Maximum Alert Level . | . . . . . Low Security (%) 100 | 100 100 100 . 100 Level 1 . | . . . . . Level 2 . | . . . . . Level 3 . | . . . . . Level 4 . | . . . . . Level 5 . | . . . . . High Security . | . . . . . Max Security . | . . . . . Peak Influence 144 | 5 125 28 . 144 Initial 28 | . . 28 . . Average 43 | . 45 26 . 45 Influence Increases 768 | 5 474 . . 289 Destroy 0b10 Robot/C 460 | . 280 . . 180 Destroy 0b10 Robot/NC 50 | 5 25 . . 20 Destroy Leader 86 | . 66 . . 20 Successful Hack 9 | . 9 . . . Select Force Hacks 30 | . 30 . . . Disable Machine 15 | . 15 . . . Destroy Structure 13 | . 4 . . 9 Lose Combat Pursuer 105 | . 45 . . 60 Influence Decreases 768 | 5 399 57 18 289 Entered New Map 65 | . . 47 18 . Time Decay 583 | 5 359 10 . 209 Lost Part 100 | . 40 . . 60 Lost Ally 20 | . . . . 20 Squads Dispatched 4 | . 4 . . . Investigation 3 | . 3 . . . Extermination . | . . . . . Reinforcement 1 | . 1 . . . Assault . | . . . . . Garrison . | . . . . . Intercept . | . . . . . Searches Triggered . | . . . . . Construction Impeded . | . . . . . Haulers Reinforced . | . . . . . Active Scanning Responses . | . . . . . Cargo Convoy Interrupts . | . . . . . Stealth | -11 -10 -10 -10 -9 --------- Run | Yrd Mat Min Exi Min Distress Signals 1 | . 1 . . . Communications Jammed . | . . . . . Distress Signals . | . . . . . Times Spotted 35 | . 24 . . 11 Peak Tracking Total 6 | . 5 . . 6 Tactical Retreats 5 | . 2 . . 3 Traps | -11 -10 -10 -10 -9 ------- Run | Yrd Mat Min Exi Min Traps Triggered 2 | . 2 . . . Indirectly . | . . . . . Trap Hack Attempts . | . . . . . Triggered . | . . . . . Disarmed . | . . . . . Reprogrammed . | . . . . . Reused . | . . . . . Traps Extracted . | . . . . . Installed . | . . . . . Triggered . | . . . . . Machines | -11 -10 -10 -10 -9 ---------- Run | Yrd Mat Min Exi Min Machines Disabled 1 | . 1 . . . Max in Single Turn 1 | . 1 . . . Machines Repaired . | . . . . . Machines Dismantled . | . . . . . Machines Sabotaged . | . . . . . Overloaded Fab Kills . | . . . . . Hacking | -11 -10 -10 -10 -9 --------- Run | Yrd Mat Min Exi Min Machines Accessed 6 | . 5 . 1 . Terminals 4 | . 4 . . . Fabricators . | . . . . . Repair Stations . | . . . . . Recycling Units 1 | . 1 . . . Scanalyzers . | . . . . . Garrison Access . | . . . . . Total Hacks 17 | . 16 . 1 . Successful 6 | . 5 . 1 . Failed 11 | . 11 . . . Catastrophic 2 | . 2 . . . Database Lockouts . | . . . . . Manual 17 | . 16 . 1 . Terminals 15 | . 15 . . . Fabricators . | . . . . . Repair Stations . | . . . . . Recycling Units 1 | . 1 . . . Scanalyzers . | . . . . . Garrison Access . | . . . . . Terminal Hacks 3 | . 2 . 1 . Part Schematic 1 | . 1 . . . Recall Investigation 1 | . 1 . . . Proto ID Catalog 1 | . . . 1 . Fabricator Hacks . | . . . . . Repair Station Hacks . | . . . . . Recycling Unit Hacks . | . . . . . Scanalyzer . | . . . . . Garrison Access Hacks . | . . . . . Unauthorized Hacks 3 | . 3 . . . Terminals 2 | . 2 . . . Botnet 2 | . 2 . . . Fabricators . | . . . . . Repair Stations . | . . . . . Recycling Units 1 | . 1 . . . Tunnel 1 | . 1 . . . Scanalyzers . | . . . . . Garrison Access . | . . . . . Data Cores Recovered . | . . . . . Used . | . . . . . Hacking Detections 4 | . 4 . . . Full Trace Events 2 | . 2 . . . Feedback Events . | . . . . . Feedback Blocked . | . . . . . Robot Schematics Acquired . | . . . . . Robots Built . | . . . . . Authchips . | . . . . . Time . | . . . . . Total Robot Build Rating . | . . . . . Part Schematics Acquired 1 | . 1 . . . Parts Built . | . . . . . Authchips . | . . . . . Time . | . . . . . Total Part Build Rating . | . . . . . Part Studies Acquired . | . . . . . Parts Repaired . | . . . . . Time . | . . . . . Parts Recycled . | . . . . . Recycled Matter . | . . . . . Retrieved Matter . | . . . . . Retrieved Components . | . . . . . Parts Scanalyzed . | . . . . . Part Schematics Acquired . | . . . . . Parts Damaged . | . . . . . Bothacking | -11 -10 -10 -10 -9 ------------ Run | Yrd Mat Min Exi Min Used RIF Installer . | . . . . . Robots Hacked . | . . . . . Non-combat . | . . . . . Combat . | . . . . . Robot Hacks Applied . | . . . . . Relay Couplers Released . | . . . . . Fabnet Peak Effective % . | . . . . . Robots Rewired . | . . . . . Allies Hacked . | . . . . . Hacks Repelled . | . . . . . Allies | -11 -10 -10 -10 -9 -------- Run | Yrd Mat Min Exi Min Total Allies 1 | . . . . 1 Largest Group 1 | . . . . 1 Highest-Rated Group 31 | . . . . 31 Highest-Rated Ally 31 | . . . . 31 Total Orders . | . . . . . Ally Attacks 1 | . . . . 1 Total Damage . | . . . . . Kills . | . . . . . Allies Corrupted . | . . . . . Allies Melted . | . . . . . Intel | -11 -10 -10 -10 -9 ------- Run | Yrd Mat Min Exi Min Active Infowar (turns) 684 | 17 667 . . . Terrain 684 | 17 667 . . . Robot Analysis Total . | . . . . . Derelict Logs Recovered . | . . . . . Drone Launches . | . . . . . Drone Recoveries . | . . . . . Exploration | -11 -10 -10 -10 -9 ------------- Run | Yrd Mat Min Exi Min Turns Passed 2336 | 86 1222 23 439 566 Spaces Moved 1136 | 39 606 13 228 250 Core 6 | 6 . . . . Treads 570 | 33 537 . . . Legs 560 | . 69 13 228 250 Wheels . | . . . . . Hover . | . . . . . Flight . | . . . . . Fastest Speed 50 | 50 160 190 190 190 Average Speed 175 | 143 164 190 191 190 Slowest Speed 330 | 160 330 190 260 260 Overloaded Moves . | . . . . . Propulsion Burnouts . | . . . . . Robots Hopped . | . . . . . Potential Cave-ins . | . . . . . Cave-ins Triggered . | . . . . . Exploration Rate (%) 39 | 3 86 8 60 41 Regions Visited 4 Branch Regions 3 Pre-discovered Areas 2 | . 1 . . 1 Known Exits Taken . | . . . . . Unknown Exits Taken 4 | 1 1 1 1 . Scrap Searched 1 | . . . . 1 Spaces Dug . | . . . . . Terrain Destroyed 12 | . 2 . . 10 Melee . | . . . . . Projectile . | . . . . . AOE 12 | . 2 . . 10 Terrain Rammed . | . . . . . Walls Destroyed . | . . . . . Machines Disabled . | . . . . . Actions | -11 -10 -10 -10 -9 --------- Run | Yrd Mat Min Exi Min Total 1311 | 53 719 12 230 297 Wait 21 | . 9 . . 12 Move 1132 | 38 605 12 227 250 Hop . | . . . . . Pick Up 16 | . 14 . 1 1 Fast Attach 15 | 7 5 . 1 2 Attach 8 | . 2 . . 6 Detach . | . . . . . Swap 8 | 2 5 . . 1 Drop 14 | . 12 . 1 1 Fire 81 | 6 59 . . 16 Melee 8 | . . . . 8 Ram . | . . . . . Kick . | . . . . . Crush 8 | . 8 . . . Escape Stasis . | . . . . . Rewire . | . . . . . Trap . | . . . . . Miscellaneous . | . . . . . Route ------- -11/Scrapyard -10/Materials (discovered 6 exits: [*Mat x3] / [*Min x2] / [Sub]) -10/Mines -10/Exiles -9/Mines History --------- Turn | Location | Event 4 | -11/Scrapyard | Discovered new exit (range 14) 87 | -11/Scrapyard | Entered Materials 259 | -10/Materials | Discovered new exit (range 10) 300 | -10/Materials | Build established: Mutant 325 | -10/Materials | Discovered new exit (range 16) 577 | -10/Materials | Discovered new exit (range 12) 768 | -10/Materials | Discovered new exit (range 16) 909 | -10/Materials | Discovered new exit (range 10) 990 | -10/Materials | Discovered new exit (range 16) 1134 | -10/Materials | Core integrity fell below 50% 1160 | -10/Materials | Lost 4 parts (1n1u2w) 1309 | -10/Materials | Entered Mines 1321 | -10/Mines | Deemed a non-threat by the Exiles lab entrance 1321 | -10/Mines | Discovered new exit (range 5) 1332 | -10/Mines | Entered Exiles 1376 | -10/Exiles | Met 8R-AWN 1410 | -10/Exiles | Met EX-HEX 1464 | -10/Exiles | Met EX-BIN 1486 | -10/Exiles | Aligned with FarCom system 1488 | -10/Exiles | Given EX-Vault access code 1532 | -10/Exiles | Opened EX-Vault 1547 | -10/Exiles | Found XL Autogun Array 1590 | -10/Exiles | Warned to stay clear of 0b10 Research branches 1647 | -10/Exiles | Met EX-DEC 1756 | -10/Exiles | Discovered new exit (range 10) 1771 | -10/Exiles | Left Exiles lab with XL Autogun Array 1771 | -10/Exiles | Entered Mines 1787 | -9/Mines | Met a Derelict bent on vengeance 1788 | -9/Mines | Escorted by a lone wolf Derelict 1808 | -9/Mines | Learned location of Storage (-7) 1887 | -9/Mines | Lost 6 parts (1p2n3w) 2337 | -9/Mines | Self-destructed Last Messages --------------- 02258_ K-01 Serf suffers critical hit (Smash). 02258_ Destroyed Wheel. 02258_ K-01 Serf system corrupted by crushing effect. 02258_ Wheel fried. 02258_ Lgt. Ion Engine fried. 02258_ K-01 Serf destroyed. 02296_ Searching scrap... 02296_ Found Hammer. 02296_ Found 50 Matter. 02305_ Sneak attack on U-05 Engineer. 02305_ U-05 Engineer destroyed. 02308_ Sneak attack on R-06 Scavenger. 02308_ Hammer follow-up attack on R-06 Scavenger. 02308_ R-06 Scavenger knocked back. 02308_ K-01 Serf collects debris. 02317_ System corrupted: Matter fused (-6). 02320_ K-01 Serf collects debris. 02325_ K-01 Serf cleans the Laser Drill. Map ----- +----------------------------------------------------+ | ?????????????????????????????????????????????????# | | ?????????????????????????????????????????????????# | | ???????????????????????????????????????????????### | | ??????????????????????????????????????????????## | | ?????????????????????????????????????????????## | | ????????????????????????????????????########## | | ????????????????????????????????????# % | | ????????????????????????????????????# ######## | | ????????????????????????????????????# #??????## | | ????????????????????????????????????# #???????# | | ????????????????????????????????????# #???????## | | ???????????????????s?s??????????????# #????????# | | ????????????????????s????????# ###### ##???????# | | ?????????????????????????????# #???????# | | ?????????????????????????????######## #???????# | | ????????????????????????????#####???# #???????# | | ??????????????????????????### ##??# #???????# | | ?????????????????????????## ##?# #???????### | | ?????????????????????????# #?# #?????????? | | ?????????????????????????# ###/%#?????????? | | ?????????????????????????# !%| #?????????# | | ?????????????????????????# """ ##?????????# | | ????????????????????????## """ k######?????????## | | ????????????????????????# """ #??????????????# | | ????????????????????# ### #??????????????# | | ????????????????????# @ ##??????????????## | | ????????????????????#### # ##????????????????# | | ???????????????????????## ## #?????????????????? | | ????????????????????????##### #?????????????????? | | ????????????????????????????# #?????????????????? | | ????????????????????????????# #?????????????????? | | ????????????????????????????# ?????????????????? | | ????????????????????????????####?????????????????? | | ?????????????????????????????????????????????????? | | ?????????????????????????????????????????????????? | | ?????????????????????????????????????????????????? | | ?????????????????????????????????????????????????? | | ?????????????????????????????????????????????????? | | ?????????????????????????????????????????????????? | | ?????????????????????????????????????????????????? | | ?????????????????????????????????????????????????# | | ?????????????????????????????????????????????????? | | ?????????????????????????????????????????????????? | | ?????????????????????????????????????????????????? | | ?????????????????????????????????????????????????? | | ?????????????????????????????????????????????????? | | ?????????????????????????????????????????????????? | | ?????????????????????????????????????????????????? | | ?????????????????????????????????????????????????? | | | +----------------------------------------------------+ Best States ------------- Heat Dissipation 25 Energy Generation 12 Energy Capacity 265 Matter Stores 300 Matter Capacity 300 Sight Range 16 Terrain Scan Range 16 Terrain Scan Density 10 Armor Coverage 225 Evasion (%) 40 Recoil Reduction 2 Item Schematics ----------------- Hcp. Storage Unit | -10/Materials | Hacked Robot Schematics ------------------ None Fabricated ------------ Nothing Repaired ---------- Nothing Studied --------- None Alien Tech Used ----------------- None Achievements -------------- None Challenges ------------ None Game ------ Seed SpectralScimitarLeg Manual? 0 Play Time 00:09:34 Cumulative 422.0 hours Start 2026.07.06 @ 16:13:57 End 2026.07.06 @ 16:21:59 Sessions 1 Manual Loads 0 Difficulty Rogue Special Mode None Game No. 385 Rogue 385 Adventurer 0 Explorer 0 Win Type - Total 11 Types 7/0/2/1/0/0/0/0/0/1 Lore% 61 Gallery% 68 Achievement% 64 Wizard Run 0 Options --------- Layout 1 ASCII 0 Keyboard 0 Movement Mouse Keybinds 0 Fullscreen 2 Font 24/Cog Map View 50x35 Zoom Use 3% Tactical HUD 1 Map Filters NONE Filters NONE Steam 1 RUN: 75a011c8-8f7d-4299-a28c-d1c7c63eaa0b